[Event "Early-Titled-Tuesday-Blitz-October-03-2023"]
[Site "Chess.com"]
[Date "2023.10.03"]
[Round "7"]
[White "Hrant_ChessMood"]
[Black "Firouzja2003"]
[Result "1/2-1/2"]
[WhiteElo "2938"]
[BlackElo "3119"]
[TimeControl "180+1"]
[EndTime "9:22:04 PDT"]
[Termination "Game drawn - insufficient material"]

1. d4 {[%clk 0:03:00.9]} 1... Nf6 {[%clk 0:02:55.8]} 2. Nf3 {[%clk 0:03:00.8]}
2... g6 {[%clk 0:02:56.2]} 3. Nbd2 {[%clk 0:03:00.7]} 3... Bg7 {[%clk
0:02:51.6]} 4. e4 {[%clk 0:03:00.7]} 4... d6 {[%clk 0:02:52.2]} 5. Bd3 {[%clk
0:03:00.8]} 5... O-O {[%clk 0:02:52.6]} 6. O-O {[%clk 0:03:01.1]} 6... Nc6
{[%clk 0:02:51.7]} 7. c3 {[%clk 0:03:01.2]} 7... a5 {[%clk 0:02:49.6]} 8. Re1
{[%clk 0:03:00.8]} 8... e5 {[%clk 0:02:48.6]} 9. h3 {[%clk 0:02:51.4]} 9... Nh5
{[%clk 0:02:39.1]} 10. dxe5 {[%clk 0:02:35.1]} 10... dxe5 {[%clk 0:02:40]} 11.
Nc4 {[%clk 0:02:25.4]} 11... h6 {[%clk 0:02:16.6]} 12. Bf1 {[%clk 0:02:21.2]}
12... Qe7 {[%clk 0:02:16.2]} 13. Ne3 {[%clk 0:02:20.5]} 13... Rd8 {[%clk
0:02:11.9]} 14. Nd5 {[%clk 0:02:18.3]} 14... Qd6 {[%clk 0:02:11.2]} 15. Qc2
{[%clk 0:02:11.8]} 15... Ne7 {[%clk 0:01:58.8]} 16. Rd1 {[%clk 0:01:55]} 16...
Nxd5 {[%clk 0:01:57.4]} 17. Rxd5 {[%clk 0:01:54.1]} 17... Qe7 {[%clk 0:01:58.1]}
18. Rxd8+ {[%clk 0:01:53.3]} 18... Qxd8 {[%clk 0:01:59]} 19. Be3 {[%clk
0:01:53.6]} 19... Be6 {[%clk 0:01:58.4]} 20. Nd2 {[%clk 0:01:52]} 20... Nf4
{[%clk 0:01:55.6]} 21. Bc4 {[%clk 0:01:40.2]} 21... Qc8 {[%clk 0:01:09.3]} 22.
Bxf4 {[%clk 0:01:18.4]} 22... exf4 {[%clk 0:01:09.5]} 23. a4 {[%clk 0:01:16.5]}
23... Bxc4 {[%clk 0:01:01.5]} 24. Nxc4 {[%clk 0:01:16]} 24... Qe6 {[%clk
0:01:02.2]} 25. Qd3 {[%clk 0:00:59.6]} 25... f3 {[%clk 0:00:56.6]} 26. g3 {[%clk
0:00:51.1]} 26... Qxh3 {[%clk 0:00:41.6]} 27. Qxf3 {[%clk 0:00:50.8]} 27... Qe6
{[%clk 0:00:41.8]} 28. Qd3 {[%clk 0:00:47.4]} 28... h5 {[%clk 0:00:39.9]} 29.
Qd5 {[%clk 0:00:38]} 29... Qxd5 {[%clk 0:00:17.5]} 30. exd5 {[%clk 0:00:38.1]}
30... Bf8 {[%clk 0:00:18.2]} 31. Re1 {[%clk 0:00:32.4]} 31... b6 {[%clk
0:00:18.4]} 32. Kg2 {[%clk 0:00:30.4]} 32... Rd8 {[%clk 0:00:18.5]} 33. Rd1
{[%clk 0:00:30.6]} 33... Re8 {[%clk 0:00:18.1]} 34. Kf3 {[%clk 0:00:30.8]} 34...
Rd8 {[%clk 0:00:13.8]} 35. Rd3 {[%clk 0:00:27]} 35... Kg7 {[%clk 0:00:14.2]} 36.
Ne5 {[%clk 0:00:20.8]} 36... Bd6 {[%clk 0:00:14.2]} 37. Nc6 {[%clk 0:00:19.7]}
37... Rh8 {[%clk 0:00:13.7]} 38. b4 {[%clk 0:00:19.9]} 38... h4 {[%clk
0:00:10.9]} 39. gxh4 {[%clk 0:00:19.7]} 39... Rxh4 {[%clk 0:00:10.9]} 40. bxa5
{[%clk 0:00:20.2]} 40... Rf4+ {[%clk 0:00:06.9]} 41. Kg2 {[%clk 0:00:19]} 41...
Rxa4 {[%clk 0:00:07.1]} 42. axb6 {[%clk 0:00:18.7]} 42... cxb6 {[%clk 0:00:08]}
43. Nd4 {[%clk 0:00:19]} 43... Ra5 {[%clk 0:00:07.6]} 44. c4 {[%clk 0:00:19]}
44... Rc5 {[%clk 0:00:07.9]} 45. Nb5 {[%clk 0:00:19.3]} 45... Be7 {[%clk
0:00:07.5]} 46. Rd4 {[%clk 0:00:17.5]} 46... Bf6 {[%clk 0:00:07.5]} 47. Re4
{[%clk 0:00:17.6]} 47... Kf8 {[%clk 0:00:05.7]} 48. d6 {[%clk 0:00:17.2]} 48...
Rc8 {[%clk 0:00:06.3]} 49. Kf3 {[%clk 0:00:11.9]} 49... Rd8 {[%clk 0:00:02.7]}
50. Ke2 {[%clk 0:00:10.1]} 50... Bg5 {[%clk 0:00:01.9]} 51. f4 {[%clk
0:00:09.2]} 51... Bh4 {[%clk 0:00:01.9]} 52. Kf3 {[%clk 0:00:09.7]} 52... f5
{[%clk 0:00:02.1]} 53. Re2 {[%clk 0:00:07.9]} 53... Kf7 {[%clk 0:00:02.4]} 54.
Rh2 {[%clk 0:00:07.4]} 54... Bf6 {[%clk 0:00:02.6]} 55. Rh7+ {[%clk 0:00:07.2]}
55... Ke6 {[%clk 0:00:03.1]} 56. Rb7 {[%clk 0:00:08.1]} 56... Rc8 {[%clk
0:00:02.6]} 57. Rxb6 {[%clk 0:00:08.1]} 57... Rxc4 {[%clk 0:00:02.6]} 58. d7+
{[%clk 0:00:08.6]} 58... Kxd7 {[%clk 0:00:03.1]} 59. Rxf6 {[%clk 0:00:08.9]}
59... Rb4 {[%clk 0:00:03.3]} 60. Na7 {[%clk 0:00:05.6]} 60... Rb3+ {[%clk
0:00:02.4]} 61. Ke2 {[%clk 0:00:05.5]} 61... Rb2+ {[%clk 0:00:02.7]} 62. Kd3
{[%clk 0:00:05.8]} 62... Rb3+ {[%clk 0:00:03.3]} 63. Ke2 {[%clk 0:00:05.3]}
63... Rb2+ {[%clk 0:00:03.7]} 64. Kf3 {[%clk 0:00:05.3]} 64... Rb3+ {[%clk
0:00:04.4]} 65. Kg2 {[%clk 0:00:05.8]} 65... Rb2+ {[%clk 0:00:04.5]} 66. Kg3
{[%clk 0:00:06.5]} 66... Rb3+ {[%clk 0:00:05.2]} 67. Kh4 {[%clk 0:00:07]} 67...
Rf3 {[%clk 0:00:05.5]} 68. Kg5 {[%clk 0:00:05.6]} 68... Rg3+ {[%clk 0:00:06.1]}
69. Kh6 {[%clk 0:00:05.4]} 69... Rg4 {[%clk 0:00:06.9]} 70. Nc6 {[%clk
0:00:03.5]} 70... Rxf4 {[%clk 0:00:07.1]} 71. Ne5+ {[%clk 0:00:04.2]} 71... Ke7
{[%clk 0:00:05.2]} 72. Kxg6 {[%clk 0:00:04.4]} 72... Rf1 {[%clk 0:00:05.2]} 73.
Ra6 {[%clk 0:00:04.5]} 73... f4 {[%clk 0:00:04.3]} 74. Kf5 {[%clk 0:00:04.2]}
74... f3 {[%clk 0:00:04.9]} 75. Re6+ {[%clk 0:00:03.7]} 75... Kd8 {[%clk
0:00:05.2]} 76. Rd6+ {[%clk 0:00:03.2]} 76... Kc7 {[%clk 0:00:05.4]} 77. Rd3
{[%clk 0:00:03.8]} 77... f2 {[%clk 0:00:05.7]} 78. Rd2 {[%clk 0:00:04.1]} 78...
Kb6 {[%clk 0:00:05]} 79. Nf3 {[%clk 0:00:04.3]} 79... Kc5 {[%clk 0:00:04.5]} 80.
Kf4 {[%clk 0:00:04.8]} 80... Kc4 {[%clk 0:00:04.3]} 81. Re2 {[%clk 0:00:05]}
81... Kd3 {[%clk 0:00:03.6]} 82. Rd2+ {[%clk 0:00:05.6]} 82... Kc3 {[%clk
0:00:03.9]} 83. Ke3 {[%clk 0:00:06.2]} 83... Rh1 {[%clk 0:00:02.9]} 84. Kxf2
{[%clk 0:00:06.3]} 84... Rh8 {[%clk 0:00:03]} 85. Rd7 {[%clk 0:00:06.3]} 85...
Re8 {[%clk 0:00:03.2]} 86. Ng5 {[%clk 0:00:06.4]} 86... Rf8+ {[%clk 0:00:03.3]}
87. Ke3 {[%clk 0:00:06.8]} 87... Re8+ {[%clk 0:00:04]} 88. Ne4+ {[%clk
0:00:06.5]} 88... Kc4 {[%clk 0:00:04]} 89. Rd4+ {[%clk 0:00:06.7]} 89... Kb5
{[%clk 0:00:03.9]} 90. Kd3 {[%clk 0:00:07.4]} 90... Rh8 {[%clk 0:00:03.6]} 91.
Rd5+ {[%clk 0:00:06.9]} 91... Kb4 {[%clk 0:00:03.7]} 92. Rg5 {[%clk 0:00:06.3]}
92... Rd8+ {[%clk 0:00:03.5]} 93. Ke3 {[%clk 0:00:06.5]} 93... Kc4 {[%clk
0:00:03.4]} 94. Rc5+ {[%clk 0:00:04.4]} 94... Kb4 {[%clk 0:00:03.9]} 95. Rc7
{[%clk 0:00:05.3]} 95... Rd1 {[%clk 0:00:03.2]} 96. Nf2 {[%clk 0:00:05.1]} 96...
Rd8 {[%clk 0:00:02.8]} 97. Ke4 {[%clk 0:00:05.4]} 97... Kb5 {[%clk 0:00:02.9]}
98. Nd3 {[%clk 0:00:05]} 98... Re8+ {[%clk 0:00:03.5]} 99. Kd4 {[%clk
0:00:05.1]} 99... Rd8+ {[%clk 0:00:04.3]} 100. Kc3 {[%clk 0:00:05.5]} 100... Kb6
{[%clk 0:00:04.6]} 101. Rc4 {[%clk 0:00:05.7]} 101... Kb5 {[%clk 0:00:05.1]}
102. Rd4 {[%clk 0:00:06]} 102... Rxd4 {[%clk 0:00:05]} 103. Kxd4 {[%clk
0:00:06.9]} 1/2-1/2

[Event "Early-Titled-Tuesday-Blitz-October-03-2023"]
[Site "Chess.com"]
[Date "2023.10.03"]
[Round "8"]
[White "TERMINATOR_PC"]
[Black "Byniolus"]
[Result "0-1"]
[WhiteElo "2612"]
[BlackElo "2744"]
[TimeControl "180+1"]
[EndTime "9:24:14 PDT"]
[Termination "Byniolus won by resignation"]

1. e4 {[%clk 0:03:00.9]} 1... d6 {[%clk 0:03:00]} 2. d4 {[%clk 0:03:00.6]} 2...
Nf6 {[%clk 0:03:00.9]} 3. Nc3 {[%clk 0:03:01.1]} 3... c6 {[%clk 0:03:01.4]} 4.
f4 {[%clk 0:02:58.9]} 4... Qb6 {[%clk 0:03:01.6]} 5. Nf3 {[%clk 0:02:57.8]} 5...
Bg4 {[%clk 0:03:01.3]} 6. Be2 {[%clk 0:02:58.3]} 6... Bxf3 {[%clk 0:03:01.4]} 7.
Bxf3 {[%clk 0:02:59.2]} 7... e5 {[%clk 0:03:02.2]} 8. fxe5 {[%clk 0:02:57.5]}
8... dxe5 {[%clk 0:03:03.1]} 9. dxe5 {[%clk 0:02:58.3]} 9... Nfd7 {[%clk
0:03:03]} 10. e6 {[%clk 0:02:58.4]} 10... fxe6 {[%clk 0:03:03.9]} 11. Bg4 {[%clk
0:02:53.4]} 11... Na6 {[%clk 0:03:02.3]} 12. Bxe6 {[%clk 0:02:51.7]} 12... O-O-O
{[%clk 0:03:03]} 13. Bg5 {[%clk 0:02:39.3]} 13... Qxb2 {[%clk 0:03:02.1]} 14.
Ne2 {[%clk 0:02:03.6]} 14... Bb4+ {[%clk 0:02:53.6]} 15. c3 {[%clk 0:01:59.6]}
15... Bxc3+ {[%clk 0:02:53.7]} 0-1

[Event "Early-Titled-Tuesday-Blitz-October-03-2023"]
[Site "Chess.com"]
[Date "2023.10.03"]
[Round "8"]
[White "Darko-Dimitrijevic"]
[Black "verrbaa"]
[Result "0-1"]
[WhiteElo "2230"]
[BlackElo "2466"]
[TimeControl "180+1"]
[EndTime "9:26:15 PDT"]
[Termination "verrbaa won by resignation"]

1. c4 {[%clk 0:02:50.3]} 1... Nf6 {[%clk 0:02:57.6]} 2. g3 {[%clk 0:02:50]} 2...
g6 {[%clk 0:02:35]} 3. b3 {[%clk 0:02:48.8]} 3... Bg7 {[%clk 0:02:35.2]} 4. Bb2
{[%clk 0:02:48.9]} 4... O-O {[%clk 0:02:35.8]} 5. Bg2 {[%clk 0:02:49]} 5... c5
{[%clk 0:02:20.1]} 6. e3 {[%clk 0:02:47.3]} 6... Nc6 {[%clk 0:02:19.6]} 7. Ne2
{[%clk 0:02:46.5]} 7... e5 {[%clk 0:02:04.4]} 8. d3 {[%clk 0:02:43.7]} 8... d6
{[%clk 0:02:03.6]} 9. Nbc3 {[%clk 0:02:42.4]} 9... Be6 {[%clk 0:01:51.1]} 10.
O-O {[%clk 0:02:41.6]} 10... d5 {[%clk 0:01:47.5]} 11. cxd5 {[%clk 0:02:41.2]}
11... Nxd5 {[%clk 0:01:47.7]} 12. a3 {[%clk 0:02:35.4]} 12... Rc8 {[%clk
0:01:45.7]} 13. Rc1 {[%clk 0:02:30.5]} 13... b6 {[%clk 0:01:45.6]} 14. Ne4
{[%clk 0:02:17.6]} 14... f5 {[%clk 0:01:37.3]} 15. N4c3 {[%clk 0:02:12.6]} 15...
Nde7 {[%clk 0:01:35.4]} 16. Rc2 {[%clk 0:02:05.5]} 16... Bxb3 {[%clk 0:01:33.8]}
17. Qd2 {[%clk 0:01:59.8]} 17... Bxc2 {[%clk 0:01:33.7]} 18. Qxc2 {[%clk
0:01:59.7]} 18... Qd7 {[%clk 0:01:30.1]} 19. Rd1 {[%clk 0:01:58.6]} 19... Rfd8
{[%clk 0:01:26.8]} 20. Nc1 {[%clk 0:01:58.5]} 20... Kh8 {[%clk 0:01:24.9]} 21.
N3e2 {[%clk 0:01:52.2]} 21... Na5 {[%clk 0:01:21.7]} 22. Nb3 {[%clk 0:01:51.4]}
22... Nxb3 {[%clk 0:01:20.7]} 23. Qxb3 {[%clk 0:01:51.1]} 23... c4 {[%clk
0:01:18.5]} 0-1

[Event "Early-Titled-Tuesday-Blitz-October-03-2023"]
[Site "Chess.com"]
[Date "2023.10.03"]
[Round "8"]
[White "NMJeevanK"]
[Black "RETURNOFTHELAGGER"]
[Result "1-0"]
[WhiteElo "2541"]
[BlackElo "2650"]
[TimeControl "180+1"]
[EndTime "9:26:27 PDT"]
[Termination "NMJeevanK won by resignation"]

1. e4 {[%clk 0:03:00.9]} 1... c5 {[%clk 0:02:40.3]} 2. Nf3 {[%clk 0:03:00]} 2...
d6 {[%clk 0:02:40.6]} 3. c3 {[%clk 0:03:00.1]} 3... Nf6 {[%clk 0:02:36.3]} 4.
Bd3 {[%clk 0:02:49]} 4... g6 {[%clk 0:02:34]} 5. O-O {[%clk 0:02:49]} 5... Bg7
{[%clk 0:02:34.1]} 6. Re1 {[%clk 0:02:48.7]} 6... O-O {[%clk 0:02:31.5]} 7. Bc2
{[%clk 0:02:48.3]} 7... Nc6 {[%clk 0:02:28.9]} 8. a3 {[%clk 0:02:41.8]} 8... a5
{[%clk 0:02:15.5]} 9. d4 {[%clk 0:02:41]} 9... cxd4 {[%clk 0:02:13.9]} 10. cxd4
{[%clk 0:02:41.9]} 10... Bg4 {[%clk 0:02:13.7]} 11. Be3 {[%clk 0:02:36.5]} 11...
Rc8 {[%clk 0:02:06.5]} 12. Nc3 {[%clk 0:02:36]} 12... Nd7 {[%clk 0:01:59.9]} 13.
Rc1 {[%clk 0:02:18.1]} 13... Nb6 {[%clk 0:01:58.7]} 14. Qd3 {[%clk 0:01:47.9]}
14... Bxf3 {[%clk 0:01:52.6]} 15. gxf3 {[%clk 0:01:48.8]} 15... d5 {[%clk
0:01:53.5]} 16. e5 {[%clk 0:01:45.4]} 16... Nc4 {[%clk 0:01:48.6]} 17. Nd1
{[%clk 0:01:30.4]} 17... Nxb2 {[%clk 0:01:34]} 18. Nxb2 {[%clk 0:01:28.5]} 1-0

[Event "Early-Titled-Tuesday-Blitz-October-03-2023"]
[Site "Chess.com"]
[Date "2023.10.03"]
[Round "8"]
[White "FREDERICKtheMATE"]
[Black "Rosh1610"]
[Result "1-0"]
[WhiteElo "2600"]
[BlackElo "2456"]
[TimeControl "180+1"]
[EndTime "9:26:29 PDT"]
[Termination "FREDERICKtheMATE won by resignation"]

1. Nf3 {[%clk 0:03:00.9]} 1... d5 {[%clk 0:02:59.9]} 2. d4 {[%clk 0:03:00.9]}
2... Nf6 {[%clk 0:03:00.5]} 3. c4 {[%clk 0:03:01.2]} 3... c6 {[%clk 0:02:59.4]}
4. e3 {[%clk 0:02:59.1]} 4... g6 {[%clk 0:02:59.6]} 5. Nc3 {[%clk 0:02:58.8]}
5... Bg7 {[%clk 0:03:00.1]} 6. b3 {[%clk 0:02:58.5]} 6... O-O {[%clk 0:03:00.6]}
7. Bd3 {[%clk 0:02:58]} 7... dxc4 {[%clk 0:02:59.7]} 8. bxc4 {[%clk 0:02:58.9]}
8... c5 {[%clk 0:02:59.9]} 9. O-O {[%clk 0:02:57.1]} 9... cxd4 {[%clk
0:02:58.9]} 10. exd4 {[%clk 0:02:58]} 10... Nc6 {[%clk 0:02:58.9]} 11. Be3
{[%clk 0:02:51.3]} 11... e6 {[%clk 0:02:56.8]} 12. Rc1 {[%clk 0:02:48.7]} 12...
Ng4 {[%clk 0:02:56.1]} 13. Be4 {[%clk 0:02:46.8]} 13... Nxe3 {[%clk 0:02:54.1]}
14. fxe3 {[%clk 0:02:47.7]} 14... Bd7 {[%clk 0:02:53]} 15. Qb3 {[%clk 0:02:46]}
15... Na5 {[%clk 0:02:51.6]} 16. Qb4 {[%clk 0:02:45]} 16... Rc8 {[%clk
0:02:50.4]} 17. c5 {[%clk 0:02:42.9]} 17... Bc6 {[%clk 0:02:48.3]} 18. Bxc6
{[%clk 0:02:41]} 18... bxc6 {[%clk 0:02:46.7]} 19. Rb1 {[%clk 0:02:36.8]} 19...
Qc7 {[%clk 0:02:46.9]} 20. Ne4 {[%clk 0:02:30.9]} 20... Rb8 {[%clk 0:02:45.4]}
21. Qa4 {[%clk 0:02:30.6]} 21... Rxb1 {[%clk 0:02:24.1]} 22. Rxb1 {[%clk
0:02:31.5]} 22... Rd8 {[%clk 0:02:23.7]} 23. Nd6 {[%clk 0:02:26.2]} 23... Bf8
{[%clk 0:02:23.3]} 24. Ne4 {[%clk 0:02:12.6]} 24... Be7 {[%clk 0:02:22.1]} 25.
Ne5 {[%clk 0:02:11.2]} 25... f6 {[%clk 0:02:21.8]} 26. Nd3 {[%clk 0:02:08.5]}
26... Kf7 {[%clk 0:02:20.3]} 27. Nb4 {[%clk 0:02:07.5]} 27... Rc8 {[%clk
0:02:16.2]} 28. Na6 {[%clk 0:02:04.9]} 28... Qd8 {[%clk 0:02:13.7]} 29. Rf1
{[%clk 0:02:00.5]} 29... Kg7 {[%clk 0:02:12.6]} 30. Nd2 {[%clk 0:01:51.5]} 30...
Nb7 {[%clk 0:02:10.7]} 31. Qb3 {[%clk 0:01:49.8]} 31... Qd7 {[%clk 0:02:10.4]}
32. Rb1 {[%clk 0:01:49.2]} 32... Nd8 {[%clk 0:02:09.8]} 33. Nc4 {[%clk
0:01:43.5]} 33... Nf7 {[%clk 0:02:08.3]} 34. Qb7 {[%clk 0:01:40.6]} 34... Qd8
{[%clk 0:02:05.1]} 35. Qxa7 {[%clk 0:01:37.7]} 35... Ra8 {[%clk 0:02:04.7]} 36.
Qb7 {[%clk 0:01:37.3]} 36... Rc8 {[%clk 0:02:04.4]} 37. Nb6 {[%clk 0:01:36.3]}
37... Qd5 {[%clk 0:01:59.9]} 38. Nxd5 {[%clk 0:01:35.2]} 1-0

[Event "Early-Titled-Tuesday-Blitz-October-03-2023"]
[Site "Chess.com"]
[Date "2023.10.03"]
[Round "8"]
[White "NovozhilovSemen"]
[Black "LeoWin2012"]
[Result "1-0"]
[WhiteElo "2599"]
[BlackElo "2329"]
[TimeControl "180+1"]
[EndTime "9:26:34 PDT"]
[Termination "NovozhilovSemen won by checkmate"]

1. d4 {[%clk 0:03:00.9]} 1... Nf6 {[%clk 0:02:56]} 2. Nf3 {[%clk 0:02:59.9]}
2... g6 {[%clk 0:02:56.2]} 3. Nc3 {[%clk 0:02:59.9]} 3... d5 {[%clk 0:02:54.5]}
4. Bf4 {[%clk 0:02:59.6]} 4... Bg7 {[%clk 0:02:54.6]} 5. Nb5 {[%clk 0:02:59.6]}
5... Na6 {[%clk 0:02:53]} 6. e3 {[%clk 0:02:59.7]} 6... c6 {[%clk 0:02:52.5]} 7.
Nc3 {[%clk 0:02:59.8]} 7... Nc7 {[%clk 0:02:52.5]} 8. Be2 {[%clk 0:03:00.2]}
8... O-O {[%clk 0:02:52.3]} 9. Ne5 {[%clk 0:03:00.7]} 9... Bf5 {[%clk
0:02:51.9]} 10. g4 {[%clk 0:03:00.3]} 10... Be4 {[%clk 0:02:51.1]} 11. f3 {[%clk
0:03:00.4]} 11... g5 {[%clk 0:02:48]} 12. Bxg5 {[%clk 0:02:57.8]} 12... Bg6
{[%clk 0:02:48.2]} 13. h4 {[%clk 0:02:58.1]} 13... h6 {[%clk 0:02:47.7]} 14. Bf4
{[%clk 0:02:54.8]} 14... Ne6 {[%clk 0:02:46.9]} 15. g5 {[%clk 0:02:48.7]} 15...
Nxf4 {[%clk 0:02:42.7]} 16. exf4 {[%clk 0:02:43.4]} 16... Nh5 {[%clk 0:02:40]}
17. Qd2 {[%clk 0:02:41.5]} 17... Ng3 {[%clk 0:02:39.2]} 18. Rg1 {[%clk
0:02:39.8]} 18... Nf5 {[%clk 0:02:38.8]} 19. h5 {[%clk 0:02:33.1]} 19... Bxh5
{[%clk 0:02:32.9]} 20. gxh6 {[%clk 0:02:33]} 20... Nxh6 {[%clk 0:02:33.5]} 21.
f5 {[%clk 0:02:33.7]} 21... Nxf5 {[%clk 0:02:32.4]} 22. Qg5 {[%clk 0:02:23.4]}
22... Bg6 {[%clk 0:02:25.3]} 23. Nxg6 {[%clk 0:02:20.9]} 23... fxg6 {[%clk
0:02:26.2]} 24. Qxg6 {[%clk 0:02:21.8]} 24... Qd6 {[%clk 0:02:16]} 25. Qg4
{[%clk 0:02:15.9]} 25... Qf6 {[%clk 0:02:10.6]} 26. O-O-O {[%clk 0:02:14.9]}
26... Ne3 {[%clk 0:02:09.6]} 27. Qh5 {[%clk 0:02:10.5]} 27... Nxd1 {[%clk
0:02:05.7]} 28. Bd3 {[%clk 0:02:02.7]} 28... Qf4+ {[%clk 0:01:40.1]} 29. Kb1
{[%clk 0:02:00.9]} 29... Qxd4 {[%clk 0:01:13.8]} 30. Bh7+ {[%clk 0:01:55.8]}
30... Kh8 {[%clk 0:01:12.5]} 31. Bg6+ {[%clk 0:01:56.4]} 31... Kg8 {[%clk
0:01:10]} 32. Qh7# {[%clk 0:01:56.9]} 1-0

[Event "Early-Titled-Tuesday-Blitz-October-03-2023"]
[Site "Chess.com"]
[Date "2023.10.03"]
[Round "8"]
[White "Rutricks"]
[Black "kleinebeer98"]
[Result "1/2-1/2"]
[WhiteElo "2688"]
[BlackElo "2818"]
[TimeControl "180+1"]
[EndTime "9:26:41 PDT"]
[Termination "Game drawn by repetition"]

1. Nf3 {[%clk 0:03:00.9]} 1... Nc6 {[%clk 0:02:58.9]} 2. d4 {[%clk 0:02:57.2]}
2... Nf6 {[%clk 0:02:58]} 3. Nc3 {[%clk 0:02:57.2]} 3... e6 {[%clk 0:02:56.5]}
4. e4 {[%clk 0:02:57.4]} 4... Bb4 {[%clk 0:02:56.9]} 5. Bd3 {[%clk 0:02:57.1]}
5... h6 {[%clk 0:02:56.6]} 6. O-O {[%clk 0:02:57.3]} 6... g5 {[%clk 0:02:57.4]}
7. d5 {[%clk 0:02:57.1]} 7... g4 {[%clk 0:02:56.8]} 8. dxc6 {[%clk 0:02:55.7]}
8... gxf3 {[%clk 0:02:57.3]} 9. cxd7+ {[%clk 0:02:56.6]} 9... Bxd7 {[%clk
0:02:55.4]} 10. Qxf3 {[%clk 0:02:56.4]} 10... Bxc3 {[%clk 0:02:54.6]} 11. bxc3
{[%clk 0:02:56.2]} 11... Bc6 {[%clk 0:02:55.3]} 12. Ba3 {[%clk 0:02:55.8]} 12...
Rg8 {[%clk 0:02:52.5]} 13. Rad1 {[%clk 0:02:54.8]} 13... Ng4 {[%clk 0:02:52]}
14. Qf4 {[%clk 0:02:49]} 14... Qh4 {[%clk 0:02:45.2]} 15. Qxc7 {[%clk
0:01:32.2]} 15... Rd8 {[%clk 0:02:38.7]} 16. h3 {[%clk 0:01:06.1]} 16... Rd7
{[%clk 0:02:21.6]} 17. Qb8+ {[%clk 0:00:49.8]} 17... Rd8 {[%clk 0:02:20.4]} 18.
Qc7 {[%clk 0:00:38.9]} 18... Rd7 {[%clk 0:02:12.6]} 19. Qb8+ {[%clk 0:00:24.6]}
19... Rd8 {[%clk 0:02:12.6]} 20. Qc7 {[%clk 0:00:15.9]} 1/2-1/2

[Event "Early-Titled-Tuesday-Blitz-October-03-2023"]
[Site "Chess.com"]
[Date "2023.10.03"]
[Round "8"]
[White "VovenRogel"]
[Black "dropstoneDP"]
[Result "1/2-1/2"]
[WhiteElo "2868"]
[BlackElo "3106"]
[TimeControl "180+1"]
[EndTime "9:26:48 PDT"]
[Termination "Game drawn by agreement"]

1. d4 {[%clk 0:03:00.9]} 1... Nf6 {[%clk 0:02:57.6]} 2. c4 {[%clk 0:03:00.7]}
2... e6 {[%clk 0:02:57.7]} 3. Nf3 {[%clk 0:03:01.3]} 3... d5 {[%clk 0:02:57.4]}
4. Nc3 {[%clk 0:03:01.1]} 4... Be7 {[%clk 0:02:57.4]} 5. Bg5 {[%clk 0:03:00.6]}
5... h6 {[%clk 0:02:56.8]} 6. Bh4 {[%clk 0:03:00.3]} 6... Ne4 {[%clk 0:02:55.8]}
7. Bxe7 {[%clk 0:02:58.6]} 7... Qxe7 {[%clk 0:02:56.3]} 8. Qc2 {[%clk
0:02:56.2]} 8... Nxc3 {[%clk 0:02:52.6]} 9. Qxc3 {[%clk 0:02:56.4]} 9... dxc4
{[%clk 0:02:50.3]} 10. Qxc4 {[%clk 0:02:55.5]} 10... O-O {[%clk 0:02:50.2]} 11.
g3 {[%clk 0:02:51.4]} 11... b6 {[%clk 0:02:48.2]} 12. Bg2 {[%clk 0:02:46.8]}
12... Bb7 {[%clk 0:02:45.7]} 13. O-O {[%clk 0:02:45.3]} 13... Rc8 {[%clk
0:02:45.8]} 14. Rfd1 {[%clk 0:02:32.6]} 14... Nd7 {[%clk 0:02:43.7]} 15. Rac1
{[%clk 0:02:22.5]} 15... c5 {[%clk 0:02:43]} 16. dxc5 {[%clk 0:02:22.6]} 16...
Nxc5 {[%clk 0:02:39.5]} 17. Qf4 {[%clk 0:02:22.5]} 17... Rd8 {[%clk 0:02:20]}
18. Ne5 {[%clk 0:02:16.6]} 18... Bxg2 {[%clk 0:02:05]} 19. Kxg2 {[%clk
0:02:16.4]} 19... Qb7+ {[%clk 0:01:57.4]} 20. Qf3 {[%clk 0:02:16.5]} 20... Qxf3+
{[%clk 0:01:57.4]} 21. Kxf3 {[%clk 0:02:17.4]} 21... Rxd1 {[%clk 0:01:27.8]} 22.
Rxd1 {[%clk 0:02:17.2]} 22... a5 {[%clk 0:01:25.7]} 23. Rd6 {[%clk 0:02:15]}
23... Na4 {[%clk 0:01:13.3]} 24. Nd3 {[%clk 0:02:01.2]} 24... Rc8 {[%clk
0:01:12]} 25. b3 {[%clk 0:01:55.2]} 25... Nc3 {[%clk 0:01:11.9]} 26. Rxb6 {[%clk
0:01:55.4]} 26... Nxa2 {[%clk 0:01:11.3]} 27. Ra6 {[%clk 0:01:54.9]} 27... Nc1
{[%clk 0:01:10.2]} 28. Nxc1 {[%clk 0:01:47]} 28... Rxc1 {[%clk 0:01:11.1]} 29.
Rxa5 {[%clk 0:01:45]} 29... Rc3+ {[%clk 0:01:11.6]} 30. e3 {[%clk 0:01:45.4]}
30... Rxb3 {[%clk 0:01:12.5]} 31. h4 {[%clk 0:01:45.3]} 1/2-1/2

[Event "Early-Titled-Tuesday-Blitz-October-03-2023"]
[Site "Chess.com"]
[Date "2023.10.03"]
[Round "8"]
[White "Let_it_be_1"]
[Black "Iball95"]
[Result "0-1"]
[WhiteElo "2622"]
[BlackElo "2770"]
[TimeControl "180+1"]
[EndTime "9:26:48 PDT"]
[Termination "Iball95 won by resignation"]

1. e4 {[%clk 0:03:00.9]} 1... c5 {[%clk 0:02:53.9]} 2. Nf3 {[%clk 0:03:00.8]}
2... e6 {[%clk 0:02:52]} 3. d4 {[%clk 0:03:00.9]} 3... cxd4 {[%clk 0:02:52.9]}
4. Nxd4 {[%clk 0:03:01.2]} 4... Nf6 {[%clk 0:02:53.6]} 5. Nc3 {[%clk 0:03:01.3]}
5... Nc6 {[%clk 0:02:54.1]} 6. Ndb5 {[%clk 0:03:01.6]} 6... Bc5 {[%clk
0:02:53.2]} 7. Nd6+ {[%clk 0:03:01.1]} 7... Ke7 {[%clk 0:02:52.6]} 8. Bf4 {[%clk
0:03:01.3]} 8... e5 {[%clk 0:02:51.7]} 9. Nf5+ {[%clk 0:03:01.4]} 9... Kf8
{[%clk 0:02:52.4]} 10. Bg5 {[%clk 0:03:01.9]} 10... Bb4 {[%clk 0:02:52.9]} 11.
Ne3 {[%clk 0:02:48.8]} 11... Qa5 {[%clk 0:02:44.9]} 12. Nc4 {[%clk 0:02:46.7]}
12... Qc5 {[%clk 0:02:26.9]} 13. Be3 {[%clk 0:02:15.7]} 13... Qe7 {[%clk
0:02:25.7]} 14. Qd3 {[%clk 0:02:01]} 14... Bxc3+ {[%clk 0:01:29.6]} 15. bxc3
{[%clk 0:01:57.1]} 15... d6 {[%clk 0:01:28.8]} 16. Nxd6 {[%clk 0:01:46.9]} 16...
Kg8 {[%clk 0:01:26.4]} 17. O-O-O {[%clk 0:01:39.9]} 17... Be6 {[%clk 0:01:24.8]}
18. Nf5 {[%clk 0:01:35.8]} 18... Qa3+ {[%clk 0:01:21.1]} 19. Kd2 {[%clk
0:01:28]} 19... Bxf5 {[%clk 0:01:14.8]} 20. Ke2 {[%clk 0:01:20.3]} 20... Bxe4
{[%clk 0:01:09.3]} 0-1